[Event "*** SCC Grand Prix: Titled Tuesday Blitz"]
[Site "Chess.com"]
[Date "2020.06.23"]
[Round "4"]
[White "deep306"]
[Black "Jumbo"]
[Result "0-1"]
[WhiteElo "2642"]
[BlackElo "2850"]
[TimeControl "180+1"]
[EndTime "10:40:49 PDT"]
[Termination "Jumbo won by resignation"]

1. e4 {[%clk 0:03:00.9]} 1... e5 {[%clk 0:02:37.4]} 2. Nf3 {[%clk 0:02:59.9]}
2... Nc6 {[%clk 0:02:37.7]} 3. Bb5 {[%clk 0:02:59.3]} 3... a6 {[%clk 0:02:36.3]}
4. Ba4 {[%clk 0:02:59.5]} 4... d6 {[%clk 0:02:36.3]} 5. c3 {[%clk 0:02:57.3]}
5... Bd7 {[%clk 0:02:35.7]} 6. d4 {[%clk 0:02:56.9]} 6... g6 {[%clk 0:02:35.8]}
7. O-O {[%clk 0:02:54.6]} 7... Bg7 {[%clk 0:02:36]} 8. dxe5 {[%clk 0:02:53.1]}
8... dxe5 {[%clk 0:02:35.6]} 9. Bg5 {[%clk 0:02:51.5]} 9... f6 {[%clk
0:02:19.8]} 10. Be3 {[%clk 0:02:50.3]} 10... Nh6 {[%clk 0:02:20.3]} 11. h3
{[%clk 0:02:49.6]} 11... Nf7 {[%clk 0:02:16.8]} 12. Nbd2 {[%clk 0:02:45.1]}
12... O-O {[%clk 0:02:16.4]} 13. Nb3 {[%clk 0:02:35.8]} 13... b5 {[%clk
0:01:31.1]} 14. Nc5 {[%clk 0:02:34.9]} 14... Bxh3 {[%clk 0:01:31.2]} 15. Bb3
{[%clk 0:02:12.2]} 15... Bg4 {[%clk 0:01:15.3]} 16. Bd5 {[%clk 0:02:11.9]} 16...
Qe8 {[%clk 0:01:10.7]} 17. a4 {[%clk 0:02:11.3]} 17... Rd8 {[%clk 0:00:59.4]}
18. Nxa6 {[%clk 0:02:07.6]} 18... b4 {[%clk 0:00:23.2]} 19. Nxc7 {[%clk
0:02:01.6]} 19... Qe7 {[%clk 0:00:15.6]} 20. Nb5 {[%clk 0:01:52]} 20... bxc3
{[%clk 0:00:15.5]} 21. bxc3 {[%clk 0:01:50.8]} 21... Kh8 {[%clk 0:00:14.7]} 22.
Qb3 {[%clk 0:01:41]} 22... Na5 {[%clk 0:00:14.6]} 23. Qb4 {[%clk 0:01:41.1]}
23... Qd7 {[%clk 0:00:09.4]} 24. Nh2 {[%clk 0:01:16.1]} 24... Be2 {[%clk
0:00:09.4]} 25. Qxa5 {[%clk 0:01:14.5]} 25... Bxf1 {[%clk 0:00:08.8]} 26. Nxf1
{[%clk 0:01:14]} 26... Rc8 {[%clk 0:00:08.7]} 27. Qb4 {[%clk 0:01:13.2]} 27...
f5 {[%clk 0:00:06.2]} 28. a5 {[%clk 0:01:09.9]} 28... f4 {[%clk 0:00:04.2]} 29.
Bc5 {[%clk 0:01:08.2]} 29... Rfe8 {[%clk 0:00:04.6]} 30. a6 {[%clk 0:01:05.4]}
30... f3 {[%clk 0:00:04.9]} 31. a7 {[%clk 0:01:00.8]} 31... fxg2 {[%clk
0:00:03.5]} 32. Ne3 {[%clk 0:00:59.2]} 32... Ng5 {[%clk 0:00:03.5]} 33. a8=Q
{[%clk 0:00:28.5]} 33... Qh3 {[%clk 0:00:03.8]} 34. Nxg2 {[%clk 0:00:25.5]}
34... Nf3+ {[%clk 0:00:03.5]} 35. Kf1 {[%clk 0:00:25.7]} 35... Rxa8 {[%clk
0:00:03.9]} 36. Rxa8 {[%clk 0:00:24.1]} 36... Rxa8 {[%clk 0:00:03.3]} 37. Bxa8
{[%clk 0:00:23.4]} 37... Qh1+ {[%clk 0:00:03.3]} 38. Ke2 {[%clk 0:00:23.9]}
38... Qxg2 {[%clk 0:00:03.7]} 39. Be3 {[%clk 0:00:21.6]} 39... h5 {[%clk
0:00:03.2]} 40. Qe7 {[%clk 0:00:11]} 40... Qg4 {[%clk 0:00:03.6]} 41. Qe8+
{[%clk 0:00:08.9]} 41... Kh7 {[%clk 0:00:03.2]} 42. Kd3 {[%clk 0:00:09.4]} 42...
Ne1+ {[%clk 0:00:03]} 43. Kc4 {[%clk 0:00:09.7]} 43... Qe2+ {[%clk 0:00:03.5]}
44. Kc5 {[%clk 0:00:10.1]} 44... Nd3+ {[%clk 0:00:03.1]} 45. Kb6 {[%clk
0:00:10.5]} 45... Nxf2 {[%clk 0:00:03.1]} 46. Bxf2 {[%clk 0:00:09.9]} 46...
Qxf2+ {[%clk 0:00:04]} 47. Ka6 {[%clk 0:00:07.2]} 47... h4 {[%clk 0:00:04.2]}
48. Bd5 {[%clk 0:00:06.6]} 48... h3 {[%clk 0:00:04.3]} 49. Bg8+ {[%clk
0:00:06.3]} 49... Kh6 {[%clk 0:00:04.4]} 50. Qe6 {[%clk 0:00:06.8]} 50... h2
{[%clk 0:00:03.6]} 51. Qh3+ {[%clk 0:00:06.4]} 51... Kg5 {[%clk 0:00:04.1]} 52.
Be6 {[%clk 0:00:06.5]} 52... Qg1 {[%clk 0:00:03]} 53. Nd6 {[%clk 0:00:06.7]}
53... h1=Q {[%clk 0:00:03]} 54. Nf7+ {[%clk 0:00:06.3]} 54... Kf6 {[%clk
0:00:03.3]} 55. Nd8 {[%clk 0:00:02.5]} 55... Qxh3 {[%clk 0:00:02.4]} 56. Bxh3
{[%clk 0:00:02.7]} 56... Qa1+ {[%clk 0:00:02.9]} 57. Kb7 {[%clk 0:00:02.6]}
57... Qxc3 {[%clk 0:00:03.4]} 58. Nc6 {[%clk 0:00:02.3]} 58... Qxh3 {[%clk
0:00:03.1]} 0-1

[Event "*** SCC Grand Prix: Titled Tuesday Blitz"]
[Site "Chess.com"]
[Date "2020.06.23"]
[Round "4"]
[White "XxPetroffsxX"]
[Black "rynos0411"]
[Result "0-1"]
[WhiteElo "1916"]
[BlackElo "2376"]
[TimeControl "180+1"]
[EndTime "10:40:51 PDT"]
[Termination "rynos0411 won on time"]

1. e4 {[%clk 0:02:59.9]} 1... d6 {[%clk 0:02:57]} 2. d4 {[%clk 0:02:59]} 2...
Nf6 {[%clk 0:02:55.8]} 3. Nc3 {[%clk 0:02:59.5]} 3... c6 {[%clk 0:02:53.4]} 4.
Nge2 {[%clk 0:02:57.2]} 4... Qa5 {[%clk 0:02:52.8]} 5. f3 {[%clk 0:02:49.4]}
5... e5 {[%clk 0:02:50.7]} 6. Be3 {[%clk 0:02:47.7]} 6... Be7 {[%clk 0:02:46]}
7. Qd2 {[%clk 0:02:47.7]} 7... Nbd7 {[%clk 0:02:39.4]} 8. g4 {[%clk 0:02:45.2]}
8... b5 {[%clk 0:02:34]} 9. Ng3 {[%clk 0:02:28.3]} 9... g6 {[%clk 0:02:28.8]}
10. h4 {[%clk 0:02:22.1]} 10... h5 {[%clk 0:02:14.7]} 11. g5 {[%clk 0:02:06.2]}
11... Nh7 {[%clk 0:02:10.3]} 12. d5 {[%clk 0:02:05.2]} 12... Bb7 {[%clk
0:01:55.4]} 13. dxc6 {[%clk 0:02:02.8]} 13... Bxc6 {[%clk 0:01:53.7]} 14. Nxb5
{[%clk 0:01:50.6]} 14... Qxd2+ {[%clk 0:01:49.4]} 15. Kxd2 {[%clk 0:01:50.6]}
15... Rb8 {[%clk 0:01:47.9]} 16. a4 {[%clk 0:01:37.1]} 16... a6 {[%clk
0:01:44.8]} 17. Nc7+ {[%clk 0:01:36.6]} 17... Kd8 {[%clk 0:01:43.2]} 18. Nxa6
{[%clk 0:01:34.8]} 18... Rxb2 {[%clk 0:01:43.6]} 19. Bc4 {[%clk 0:01:30]} 19...
f6 {[%clk 0:01:38.8]} 20. Kc3 {[%clk 0:01:16.3]} 20... Rb7 {[%clk 0:01:36.5]}
21. Nb4 {[%clk 0:01:13.3]} 21... Nb8 {[%clk 0:01:30.4]} 22. a5 {[%clk
0:01:11.5]} 22... Rxb4 {[%clk 0:01:14.8]} 23. Kxb4 {[%clk 0:01:11.2]} 23... d5+
{[%clk 0:01:14]} 24. Kc3 {[%clk 0:01:02.7]} 24... d4+ {[%clk 0:00:58.9]} 25.
Bxd4 {[%clk 0:01:02.8]} 25... exd4+ {[%clk 0:00:59.8]} 26. Kxd4 {[%clk
0:01:03.2]} 26... fxg5 {[%clk 0:00:58.3]} 27. a6 {[%clk 0:01:02.6]} 27... Nd7
{[%clk 0:00:55.6]} 28. a7 {[%clk 0:00:54.8]} 28... Kc7 {[%clk 0:00:55.5]} 29.
Bd5 {[%clk 0:00:52.5]} 29... Bf6+ {[%clk 0:00:55.6]} 30. Kc4 {[%clk 0:00:49.7]}
30... Bxa1 {[%clk 0:00:53.8]} 31. Rxa1 {[%clk 0:00:49.5]} 31... Ra8 {[%clk
0:00:50.9]} 32. hxg5 {[%clk 0:00:40.5]} 32... Nxg5 {[%clk 0:00:47.5]} 33. f4
{[%clk 0:00:39.1]} 33... Nf3 {[%clk 0:00:14.6]} 34. Ne2 {[%clk 0:00:20.4]} 34...
h4 {[%clk 0:00:08.5]} 35. f5 {[%clk 0:00:15.9]} 35... gxf5 {[%clk 0:00:07.4]}
36. exf5 {[%clk 0:00:15.2]} 36... Nb6+ {[%clk 0:00:07.6]} 37. Kc5 {[%clk
0:00:14.5]} 37... Bxd5 {[%clk 0:00:06.2]} 38. Nf4 {[%clk 0:00:13]} 38... Bc6
{[%clk 0:00:05.9]} 39. Ne6+ {[%clk 0:00:12.9]} 39... Kb7 {[%clk 0:00:06.3]} 40.
f6 {[%clk 0:00:09.7]} 40... Nd7+ {[%clk 0:00:05.5]} 41. Kd6 {[%clk 0:00:09.4]}
41... Nfe5 {[%clk 0:00:04.7]} 42. Nc5+ {[%clk 0:00:06.7]} 42... Nxc5 {[%clk
0:00:04.3]} 43. Kxc5 {[%clk 0:00:06.9]} 43... Nd7+ {[%clk 0:00:04.8]} 44. Kd6
{[%clk 0:00:06.9]} 44... Nxf6 {[%clk 0:00:05.2]} 45. Ke7 {[%clk 0:00:07.6]}
45... Nd5+ {[%clk 0:00:04.3]} 46. Kd6 {[%clk 0:00:07.8]} 46... Rxa7 {[%clk
0:00:04.8]} 47. Rxa7+ {[%clk 0:00:06.5]} 47... Kxa7 {[%clk 0:00:05.7]} 48. Kxc6
{[%clk 0:00:07]} 48... h3 {[%clk 0:00:06.2]} 49. Kxd5 {[%clk 0:00:07.5]} 49...
h2 {[%clk 0:00:07.1]} 50. Kd6 {[%clk 0:00:07.2]} 50... h1=Q {[%clk 0:00:08]} 51.
c4 {[%clk 0:00:06.7]} 51... Kb8 {[%clk 0:00:05.9]} 52. c5 {[%clk 0:00:06.4]}
52... Kc8 {[%clk 0:00:06.3]} 53. c6 {[%clk 0:00:06.6]} 53... Qh6+ {[%clk
0:00:06.1]} 54. Kc5 {[%clk 0:00:04.2]} 54... Kc7 {[%clk 0:00:06.4]} 55. Kd4
{[%clk 0:00:05]} 55... Qxc6 {[%clk 0:00:07.1]} 0-1

[Event "*** SCC Grand Prix: Titled Tuesday Blitz"]
[Site "Chess.com"]
[Date "2020.06.23"]
[Round "4"]
[White "exoticprincess"]
[Black "Roman_Ovetchkin"]
[Result "1-0"]
[WhiteElo "2784"]
[BlackElo "2571"]
[TimeControl "180+1"]
[EndTime "10:40:56 PDT"]
[Termination "exoticprincess won on time"]

1. d4 {[%clk 0:03:00.9]} 1... Nf6 {[%clk 0:02:58.3]} 2. c4 {[%clk 0:02:59.1]}
2... g6 {[%clk 0:02:58.5]} 3. Nc3 {[%clk 0:02:58.8]} 3... Bg7 {[%clk 0:02:58.9]}
4. e4 {[%clk 0:02:59.2]} 4... d6 {[%clk 0:02:59.2]} 5. Be2 {[%clk 0:02:59.7]}
5... O-O {[%clk 0:02:59.6]} 6. h4 {[%clk 0:03:00.3]} 6... c5 {[%clk 0:02:43.4]}
7. d5 {[%clk 0:03:00.2]} 7... b5 {[%clk 0:02:40.1]} 8. cxb5 {[%clk 0:03:01.1]}
8... a6 {[%clk 0:02:40.1]} 9. bxa6 {[%clk 0:03:01]} 9... Bxa6 {[%clk 0:02:39.4]}
10. h5 {[%clk 0:03:01.1]} 10... Qa5 {[%clk 0:02:31.3]} 11. hxg6 {[%clk
0:02:58.6]} 11... Nxe4 {[%clk 0:02:15.9]} 12. gxh7+ {[%clk 0:02:56.5]} 12... Kh8
{[%clk 0:02:15.3]} 13. Kf1 {[%clk 0:02:54.6]} 13... Nxc3 {[%clk 0:02:07.9]} 14.
bxc3 {[%clk 0:02:54.2]} 14... Qxc3 {[%clk 0:02:07.7]} 15. Rb1 {[%clk 0:02:53.1]}
15... Qa5 {[%clk 0:01:43.3]} 16. Bb2 {[%clk 0:02:48.4]} 16... Bxb2 {[%clk
0:01:42.2]} 17. Rxb2 {[%clk 0:02:49.3]} 17... Nd7 {[%clk 0:01:42.1]} 18. Qa1
{[%clk 0:02:39.1]} 18... Qc3 {[%clk 0:01:36.2]} 19. Rh3 {[%clk 0:02:36.9]} 19...
Qd4 {[%clk 0:01:28]} 20. Bxa6 {[%clk 0:02:36.1]} 20... Rxa6 {[%clk 0:01:27]} 21.
Ne2 {[%clk 0:02:36.6]} 21... Qe5 {[%clk 0:01:21.3]} 22. Re3 {[%clk 0:02:36.3]}
22... Qf6 {[%clk 0:01:21.3]} 23. Rf3 {[%clk 0:02:34.5]} 23... Qe5 {[%clk
0:01:18.8]} 24. Qc1 {[%clk 0:02:06.8]} 24... Nf6 {[%clk 0:01:07.7]} 25. Qh6
{[%clk 0:02:01.8]} 25... Raa8 {[%clk 0:01:07.8]} 26. Qc1 {[%clk 0:01:30.7]}
26... Rfb8 {[%clk 0:01:02.9]} 27. Rxb8+ {[%clk 0:01:23.9]} 27... Rxb8 {[%clk
0:01:02.8]} 28. Nc3 {[%clk 0:01:17.4]} 28... Qh5 {[%clk 0:00:56.2]} 29. Rh3
{[%clk 0:01:14.3]} 29... Qg6 {[%clk 0:00:55.6]} 30. Rg3 {[%clk 0:01:10.3]} 30...
Qh5 {[%clk 0:00:54.8]} 31. Kg1 {[%clk 0:01:10]} 31... Nxh7 {[%clk 0:00:49.6]}
32. Rh3 {[%clk 0:01:07.8]} 32... Qg6 {[%clk 0:00:49.4]} 33. Qe3 {[%clk
0:01:05.9]} 33... Rg8 {[%clk 0:00:47.7]} 34. Rg3 {[%clk 0:01:04.8]} 34... Qf6
{[%clk 0:00:47.1]} 35. Rxg8+ {[%clk 0:01:03.7]} 35... Kxg8 {[%clk 0:00:46.6]}
36. a4 {[%clk 0:01:04.6]} 36... Qf5 {[%clk 0:00:38.5]} 37. Qxe7 {[%clk
0:01:00.6]} 37... Qd3 {[%clk 0:00:35.2]} 38. Qe3 {[%clk 0:00:58.1]} 38... Qc4
{[%clk 0:00:30.6]} 39. Qg3+ {[%clk 0:00:57.5]} 39... Kh8 {[%clk 0:00:28.7]} 40.
a5 {[%clk 0:00:57.5]} 40... Qa6 {[%clk 0:00:25.8]} 41. Ne4 {[%clk 0:00:56.1]}
41... Qxa5 {[%clk 0:00:23.9]} 42. Nxd6 {[%clk 0:00:56.3]} 42... Qa1+ {[%clk
0:00:21]} 43. Kh2 {[%clk 0:00:56.2]} 43... Qf6 {[%clk 0:00:20.7]} 44. Kg1 {[%clk
0:00:26.5]} 44... Qa1+ {[%clk 0:00:19.7]} 45. Kh2 {[%clk 0:00:26.8]} 45... Qf6
{[%clk 0:00:20.3]} 46. Kh3 {[%clk 0:00:11.8]} 46... Qh6+ {[%clk 0:00:18]} 47.
Kg4 {[%clk 0:00:12.1]} 47... Qg6+ {[%clk 0:00:15.9]} 48. Kf3 {[%clk 0:00:12.4]}
48... Qd3+ {[%clk 0:00:15.9]} 49. Kf4 {[%clk 0:00:12.6]} 49... Qd4+ {[%clk
0:00:14.1]} 50. Ne4 {[%clk 0:00:12.4]} 50... Qxd5 {[%clk 0:00:13.6]} 51. Qc3+
{[%clk 0:00:12.4]} 51... Qd4 {[%clk 0:00:13.7]} 52. Qxc5 {[%clk 0:00:12.1]}
52... Qxc5 {[%clk 0:00:13.9]} 53. Nxc5 {[%clk 0:00:13]} 53... Kg7 {[%clk
0:00:14.4]} 54. Kf5 {[%clk 0:00:13.5]} 54... Nf6 {[%clk 0:00:13.6]} 55. Ne4
{[%clk 0:00:12.5]} 55... Nd5 {[%clk 0:00:12.9]} 56. Ke5 {[%clk 0:00:12.9]} 56...
Ne7 {[%clk 0:00:12.1]} 57. Nd6 {[%clk 0:00:13.4]} 57... Nc6+ {[%clk 0:00:11.8]}
58. Ke4 {[%clk 0:00:13.3]} 58... Kg6 {[%clk 0:00:11.2]} 59. f4 {[%clk
0:00:13.3]} 59... Ne7 {[%clk 0:00:10.1]} 60. g4 {[%clk 0:00:13.3]} 60... Nc6
{[%clk 0:00:09.3]} 61. Nc4 {[%clk 0:00:13.5]} 61... Ne7 {[%clk 0:00:08.2]} 62.
Ne5+ {[%clk 0:00:13.6]} 62... Kg7 {[%clk 0:00:07.8]} 63. Kd4 {[%clk 0:00:12.2]}
63... Nc8 {[%clk 0:00:04.7]} 64. Kd5 {[%clk 0:00:11.3]} 64... Nb6+ {[%clk
0:00:04.2]} 65. Kc5 {[%clk 0:00:11.1]} 65... Nc8 {[%clk 0:00:03.7]} 66. Nc6
{[%clk 0:00:11.4]} 66... Kf6 {[%clk 0:00:02.3]} 67. Nb4 {[%clk 0:00:09.7]} 1-0

[Event "*** SCC Grand Prix: Titled Tuesday Blitz"]
[Site "Chess.com"]
[Date "2020.06.23"]
[Round "4"]
[White "Sviridov_Valery"]
[Black "gilbert_gm"]
[Result "1-0"]
[WhiteElo "2844"]
[BlackElo "2656"]
[TimeControl "180+1"]
[EndTime "10:40:58 PDT"]
[Termination "Sviridov_Valery won on time"]

1. Nf3 {[%clk 0:03:00.9]} 1... d5 {[%clk 0:02:56.2]} 2. g3 {[%clk 0:02:59.8]}
2... c6 {[%clk 0:02:56.2]} 3. Bg2 {[%clk 0:03:00.3]} 3... Nf6 {[%clk 0:02:57.1]}
4. O-O {[%clk 0:03:00.6]} 4... Bg4 {[%clk 0:02:55.5]} 5. d4 {[%clk 0:03:00.4]}
5... Nbd7 {[%clk 0:02:54.2]} 6. Nbd2 {[%clk 0:03:00.5]} 6... e6 {[%clk
0:02:53.7]} 7. Re1 {[%clk 0:03:00.7]} 7... Be7 {[%clk 0:02:44.6]} 8. e4 {[%clk
0:03:00.3]} 8... dxe4 {[%clk 0:02:44.9]} 9. Nxe4 {[%clk 0:03:01.2]} 9... Nxe4
{[%clk 0:02:45.8]} 10. Rxe4 {[%clk 0:03:01.8]} 10... Nf6 {[%clk 0:02:46.7]} 11.
Re1 {[%clk 0:03:01.9]} 11... O-O {[%clk 0:02:45.8]} 12. c3 {[%clk 0:03:02]}
12... a5 {[%clk 0:02:39.9]} 13. Qb3 {[%clk 0:03:00.6]} 13... Bxf3 {[%clk
0:02:24.1]} 14. Bxf3 {[%clk 0:03:01.5]} 14... Qd7 {[%clk 0:02:25]} 15. a4 {[%clk
0:02:59]} 15... h6 {[%clk 0:02:20.1]} 16. h4 {[%clk 0:02:58.5]} 16... Nd5 {[%clk
0:02:18.8]} 17. Bd2 {[%clk 0:02:55]} 17... Rfb8 {[%clk 0:02:13.7]} 18. Kg2
{[%clk 0:02:50.3]} 18... b5 {[%clk 0:02:07.2]} 19. axb5 {[%clk 0:02:49.4]} 19...
cxb5 {[%clk 0:02:05.9]} 20. Qc2 {[%clk 0:02:16.8]} 20... a4 {[%clk 0:02:02.2]}
21. Qd3 {[%clk 0:02:15.6]} 21... Rb7 {[%clk 0:01:57.1]} 22. Re5 {[%clk
0:02:13.5]} 22... Bf6 {[%clk 0:01:52.5]} 23. Re2 {[%clk 0:02:13.5]} 23... Rc8
{[%clk 0:01:45.9]} 24. Ree1 {[%clk 0:01:58.4]} 24... Rbb8 {[%clk 0:01:43.4]} 25.
Bd1 {[%clk 0:01:57.8]} 25... Qc6 {[%clk 0:01:27]} 26. Kg1 {[%clk 0:01:57.6]}
26... Nb6 {[%clk 0:01:21.2]} 27. Bc2 {[%clk 0:01:56.1]} 27... Kf8 {[%clk
0:01:19]} 28. Qh7 {[%clk 0:01:53]} 28... Nd5 {[%clk 0:01:15.5]} 29. Be4 {[%clk
0:01:50.3]} 29... Ke7 {[%clk 0:01:12.8]} 30. Bg2 {[%clk 0:01:50.1]} 30... Rh8
{[%clk 0:01:07.6]} 31. Qd3 {[%clk 0:01:50]} 31... Rhd8 {[%clk 0:01:08.5]} 32.
Re2 {[%clk 0:01:43.1]} 32... Kf8 {[%clk 0:01:04.8]} 33. Qh7 {[%clk 0:01:41.4]}
33... Ke7 {[%clk 0:01:03.8]} 34. Rae1 {[%clk 0:01:41.2]} 34... Rh8 {[%clk
0:00:53]} 35. Qd3 {[%clk 0:01:40.7]} 35... Rhd8 {[%clk 0:00:50.8]} 36. Bh3
{[%clk 0:01:19.2]} 36... Kf8 {[%clk 0:00:42.3]} 37. Qh7 {[%clk 0:01:18.7]} 37...
Ke7 {[%clk 0:00:39.8]} 38. Bxh6 {[%clk 0:01:11.4]} 38... Rh8 {[%clk 0:00:38.6]}
39. Qf5 {[%clk 0:01:11.8]} 39... g6 {[%clk 0:00:27.2]} 40. Qg4 {[%clk
0:00:58.7]} 40... Rb6 {[%clk 0:00:26.1]} 41. Bd2 {[%clk 0:00:46.5]} 41... Kd7
{[%clk 0:00:18.5]} 42. Bg2 {[%clk 0:00:45.6]} 42... Ke7 {[%clk 0:00:16.9]} 43.
Qf3 {[%clk 0:00:43.1]} 43... Rd8 {[%clk 0:00:16.4]} 44. h5 {[%clk 0:00:40.8]}
44... gxh5 {[%clk 0:00:16.5]} 45. Qxh5 {[%clk 0:00:41.7]} 45... Qd6 {[%clk
0:00:14.2]} 46. Qh7 {[%clk 0:00:35.7]} 46... Ke8 {[%clk 0:00:10.6]} 47. Bf3
{[%clk 0:00:34.5]} 47... Qf8 {[%clk 0:00:08.8]} 48. Bh5 {[%clk 0:00:33.9]} 48...
Qg7 {[%clk 0:00:05.8]} 49. Rxe6+ {[%clk 0:00:33]} 49... Rxe6 {[%clk 0:00:06]}
50. Rxe6+ {[%clk 0:00:33.9]} 50... Kd7 {[%clk 0:00:06.9]} 51. Qxg7 {[%clk
0:00:33.6]} 51... Bxg7 {[%clk 0:00:07.8]} 52. Ra6 {[%clk 0:00:28.4]} 52... Nc7
{[%clk 0:00:07.6]} 53. Ra7 {[%clk 0:00:26.7]} 53... Ra8 {[%clk 0:00:07.4]} 54.
Rxa8 {[%clk 0:00:26.1]} 54... Nxa8 {[%clk 0:00:08.3]} 55. Bxf7 {[%clk
0:00:26.4]} 55... Nb6 {[%clk 0:00:09.2]} 56. Kf1 {[%clk 0:00:24.9]} 56... Ke7
{[%clk 0:00:08.7]} 57. Ba2 {[%clk 0:00:23.8]} 57... Nc4 {[%clk 0:00:06.5]} 58.
Bxc4 {[%clk 0:00:23.2]} 58... bxc4 {[%clk 0:00:07.4]} 59. g4 {[%clk 0:00:23.1]}
59... Ke6 {[%clk 0:00:08.3]} 60. f4 {[%clk 0:00:22.9]} 60... Kd5 {[%clk
0:00:08.3]} 61. Kg2 {[%clk 0:00:18]} 61... Ke4 {[%clk 0:00:08.5]} 62. f5 {[%clk
0:00:18.9]} 62... Bf8 {[%clk 0:00:07.2]} 63. Bc1 {[%clk 0:00:16.6]} 63... Be7
{[%clk 0:00:05.4]} 64. Kg3 {[%clk 0:00:13.1]} 64... Bd8 {[%clk 0:00:04.4]} 65.
Kf2 {[%clk 0:00:10.6]} 65... Bh4+ {[%clk 0:00:03.7]} 66. Ke2 {[%clk 0:00:10.7]}
66... Be7 {[%clk 0:00:03]} 67. Bh6 {[%clk 0:00:10.3]} 67... Bd8 {[%clk
0:00:01.9]} 68. Bg7 {[%clk 0:00:10.3]} 68... Kf4 {[%clk 0:00:01.2]} 69. f6
{[%clk 0:00:10.8]} 1-0

[Event "*** SCC Grand Prix: Titled Tuesday Blitz"]
[Site "Chess.com"]
[Date "2020.06.23"]
[Round "4"]
[White "ChessWarrior7197"]
[Black "ValentinDragnev"]
[Result "0-1"]
[WhiteElo "2903"]
[BlackElo "2735"]
[TimeControl "180+1"]
[EndTime "10:41:02 PDT"]
[Termination "ValentinDragnev won on time"]

1. e4 {[%clk 0:03:00.9]} 1... e5 {[%clk 0:03:00]} 2. Nf3 {[%clk 0:03:00.8]} 2...
Nc6 {[%clk 0:03:00.3]} 3. Bb5 {[%clk 0:03:00.4]} 3... a6 {[%clk 0:03:00.7]} 4.
Ba4 {[%clk 0:03:00.7]} 4... Nf6 {[%clk 0:03:01.3]} 5. O-O {[%clk 0:03:00.9]}
5... Be7 {[%clk 0:03:01.9]} 6. Re1 {[%clk 0:03:00.8]} 6... b5 {[%clk 0:03:02.4]}
7. Bb3 {[%clk 0:03:01.4]} 7... d6 {[%clk 0:03:03.1]} 8. c3 {[%clk 0:03:01.2]}
8... O-O {[%clk 0:03:03.7]} 9. h3 {[%clk 0:03:01.8]} 9... Nb8 {[%clk 0:03:04.3]}
10. d4 {[%clk 0:03:01.9]} 10... Nbd7 {[%clk 0:03:04.9]} 11. c4 {[%clk
0:03:02.6]} 11... c6 {[%clk 0:03:02.9]} 12. Nc3 {[%clk 0:03:02.9]} 12... b4
{[%clk 0:02:58.2]} 13. Na4 {[%clk 0:03:02.7]} 13... c5 {[%clk 0:02:53.2]} 14. d5
{[%clk 0:03:03]} 14... Ne8 {[%clk 0:02:49.5]} 15. Bc2 {[%clk 0:03:02.5]} 15...
g6 {[%clk 0:02:49.4]} 16. a3 {[%clk 0:03:02.6]} 16... a5 {[%clk 0:02:47.7]} 17.
b3 {[%clk 0:03:02.8]} 17... Ng7 {[%clk 0:02:44.1]} 18. Nb2 {[%clk 0:03:01.7]}
18... Bb7 {[%clk 0:02:32.6]} 19. Bh6 {[%clk 0:03:01.3]} 19... Qc7 {[%clk
0:02:27.3]} 20. Ra2 {[%clk 0:03:00.6]} 20... Nf6 {[%clk 0:02:19.3]} 21. Qd2
{[%clk 0:02:58.7]} 21... Kh8 {[%clk 0:02:17.5]} 22. Rea1 {[%clk 0:02:58]} 22...
Ng8 {[%clk 0:02:17.4]} 23. Be3 {[%clk 0:02:39.5]} 23... f5 {[%clk 0:01:55.3]}
24. Bg5 {[%clk 0:02:38.4]} 24... f4 {[%clk 0:01:51.8]} 25. axb4 {[%clk
0:02:37.7]} 25... axb4 {[%clk 0:01:51.6]} 26. Bd1 {[%clk 0:02:19.6]} 26... Bxg5
{[%clk 0:01:45.8]} 27. Nxg5 {[%clk 0:02:19.4]} 27... Qe7 {[%clk 0:01:46.3]} 28.
Nf3 {[%clk 0:02:12]} 28... Nf6 {[%clk 0:01:46.2]} 29. Bc2 {[%clk 0:02:07.7]}
29... h6 {[%clk 0:01:42.2]} 30. Nh2 {[%clk 0:01:52.8]} 30... g5 {[%clk
0:01:33.3]} 31. Ng4 {[%clk 0:01:51.2]} 31... h5 {[%clk 0:01:28.3]} 32. Nxf6
{[%clk 0:01:51.4]} 32... Qxf6 {[%clk 0:01:28.9]} 33. f3 {[%clk 0:01:47.7]} 33...
g4 {[%clk 0:01:26.2]} 34. hxg4 {[%clk 0:01:46]} 34... Rxa2 {[%clk 0:01:22.3]}
35. Rxa2 {[%clk 0:01:45.6]} 35... hxg4 {[%clk 0:01:22.8]} 36. fxg4 {[%clk
0:01:45.5]} 36... Bc8 {[%clk 0:01:20.2]} 37. Bd1 {[%clk 0:01:42.8]} 37... Qg6
{[%clk 0:01:06.3]} 38. Qe2 {[%clk 0:01:39.2]} 38... Kh7 {[%clk 0:00:56.8]} 39.
Nd3 {[%clk 0:01:34.5]} 39... Ne8 {[%clk 0:00:53.3]} 40. Nf2 {[%clk 0:01:32.9]}
40... Nf6 {[%clk 0:00:50.5]} 41. Ra7+ {[%clk 0:01:31.7]} 41... Kh8 {[%clk
0:00:46.3]} 42. Qf3 {[%clk 0:01:28.1]} 42... Nh7 {[%clk 0:00:31.5]} 43. Qh3
{[%clk 0:01:26.2]} 43... Kg8 {[%clk 0:00:31.6]} 44. Qh5 {[%clk 0:01:21.1]} 44...
Qxh5 {[%clk 0:00:26.4]} 45. gxh5 {[%clk 0:01:22]} 45... Ng5 {[%clk 0:00:23.1]}
46. h6 {[%clk 0:01:15.2]} 46... Rf7 {[%clk 0:00:23.4]} 47. Ra8 {[%clk
0:01:02.5]} 47... Rf8 {[%clk 0:00:23.8]} 48. Rb8 {[%clk 0:00:53.9]} 48... Kh7
{[%clk 0:00:21.8]} 49. Rb6 {[%clk 0:00:54.1]} 49... Rf6 {[%clk 0:00:20.4]} 50.
Bg4 {[%clk 0:00:54.3]} 50... Bxg4 {[%clk 0:00:16.5]} 51. Nxg4 {[%clk 0:00:55.2]}
51... Rg6 {[%clk 0:00:16.5]} 52. Rb7+ {[%clk 0:00:53.3]} 52... Kh8 {[%clk
0:00:16]} 53. Nf2 {[%clk 0:00:21.4]} 53... Nf3+ {[%clk 0:00:16.2]} 54. Kf1
{[%clk 0:00:10.9]} 54... Nd2+ {[%clk 0:00:16.7]} 55. Ke2 {[%clk 0:00:11.3]}
55... Nxb3 {[%clk 0:00:16.2]} 56. Nd3 {[%clk 0:00:09.2]} 56... Rxg2+ {[%clk
0:00:12.9]} 57. Kf1 {[%clk 0:00:09.6]} 57... Rg6 {[%clk 0:00:12.2]} 58. Rb6
{[%clk 0:00:09.8]} 58... Kh7 {[%clk 0:00:08.4]} 59. Nxe5 {[%clk 0:00:03.9]}
59... dxe5 {[%clk 0:00:07.7]} 60. d6 {[%clk 0:00:04.4]} 60... Nd4 {[%clk
0:00:04.4]} 61. d7 {[%clk 0:00:02.6]} 61... Rg8 {[%clk 0:00:04.7]} 62. Rb7
{[%clk 0:00:01.4]} 62... Rd8 {[%clk 0:00:04.7]} 63. Rc7 {[%clk 0:00:02]} 63...
Kxh6 {[%clk 0:00:04.6]} 64. Rxc5 {[%clk 0:00:01.6]} 64... Rxd7 {[%clk
0:00:04.6]} 65. Rxe5 {[%clk 0:00:01.2]} 65... b3 {[%clk 0:00:05]} 66. Rb5 {[%clk
0:00:01.3]} 66... f3 {[%clk 0:00:05.4]} 0-1